[Event "British Rapidplay Championship 2023"]
[Site "Mercure Bradford, Bankfield Hotel"]
[Date "2023.04.15"]
[Round "2.15"]
[White "Watson, Phil R"]
[Black "Nicholson, Jim WR"]
[Result "1/2-1/2"]
[TimeControl "15 minutes plus 10 seconds per move"]
[WhiteElo "2144"]
[BlackElo "1958"]

1. d4 {[%clk 00:15:17]} {[%emt 00:00:04]} d5 {[%clk 00:15:18]} 2. c4 {[%clk
00:15:25]} {[%emt 00:00:03]} c6 {[%clk 00:15:26]} {[%emt 00:00:02]} 3. cxd5
{[%clk 00:15:32]} {[%emt 00:00:02]} cxd5 {[%clk 00:15:34]} {[%emt 00:00:02]} 4.
Bf4 {[%clk 00:15:41]} {[%emt 00:00:01]} Nc6 {[%clk 00:15:37]} {[%emt 00:00:08]}
5. Nc3 {[%clk 00:15:47]} {[%emt 00:00:04]} Nf6 {[%clk 00:15:19]} {[%emt
00:00:27]} 6. e3 {[%clk 00:15:54]} {[%emt 00:00:03]} a6 {[%clk 00:15:13]}
{[%emt 00:00:16]} 7. Bd3 {[%clk 00:15:56]} {[%emt 00:00:08]} g6 {[%clk
00:14:49]} {[%emt 00:00:49]} 8. Nf3 {[%clk 00:14:26]} {[%emt 00:01:25]} Bg7
{[%clk 00:14:50]} {[%emt 00:00:08]} 9. O-O {[%clk 00:14:12]} {[%emt 00:00:26]}
Nh5 {[%clk 00:14:32]} {[%emt 00:00:27]} 10. Be5 {[%clk 00:12:08]} {[%emt
00:02:15]} f6 {[%clk 00:14:25]} {[%emt 00:00:16]} 11. Bg3 {[%clk 00:10:32]}
{[%emt 00:01:46]} Nxg3 {[%clk 00:14:30]} {[%emt 00:00:05]} 12. hxg3 {[%clk
00:10:09]} {[%emt 00:00:33]} f5 {[%clk 00:13:04]} {[%emt 00:01:35]} 13. Qb3
{[%clk 00:09:24]} {[%emt 00:00:56]} e6 {[%clk 00:13:03]} {[%emt 00:00:11]} 14.
Na4 {[%clk 00:08:55]} {[%emt 00:00:40]} O-O {[%clk 00:11:30]} {[%emt 00:01:43]}
15. Rfc1 {[%clk 00:07:29]} {[%emt 00:01:36]} Qd6 {[%clk 00:08:56]} {[%emt
00:02:43]} 16. Nb6 {[%clk 00:06:25]} {[%emt 00:01:15]} Rb8 {[%clk 00:08:51]}
{[%emt 00:00:14]} 17. Qa3 {[%clk 00:06:00]} {[%emt 00:00:35]} Rd8 {[%clk
00:07:52]} {[%emt 00:01:09]} 18. Qxd6 {[%clk 00:02:53]} {[%emt 00:03:18]} Rxd6
{[%clk 00:08:00]} {[%emt 00:00:01]} 19. Nxc8 {[%clk 00:03:02]} {[%emt
00:00:02]} Rxc8 {[%clk 00:08:09]} {[%emt 00:00:01]} 20. Rc3 {[%clk 00:03:08]}
{[%emt 00:00:04]} Rdd8 {[%clk 00:07:57]} {[%emt 00:00:23]} 21. Rac1 {[%clk
00:03:09]} {[%emt 00:00:09]} Ne7 {[%clk 00:07:45]} {[%emt 00:00:20]} 22. Rc7
{[%clk 00:02:55]} {[%emt 00:00:26]} Bf6 {[%clk 00:06:30]} {[%emt 00:01:24]} 23.
R1c3 {[%clk 00:02:44]} {[%emt 00:00:21]} Kf8 {[%clk 00:06:03]} {[%emt
00:00:37]} 24. Rxb7 {[%clk 00:02:33]} {[%emt 00:00:22]} Rxc3 {[%clk 00:05:56]}
{[%emt 00:00:17]} 25. bxc3 {[%clk 00:02:42]} Rc8 {[%clk 00:05:56]} {[%emt
00:00:09]} 26. Rb3 {[%clk 00:02:46]} {[%emt 00:00:07]} a5 {[%clk 00:05:53]}
{[%emt 00:00:12]} 27. Nd2 {[%clk 00:02:47]} {[%emt 00:00:09]} Nc6 {[%clk
00:05:44]} {[%emt 00:00:18]} 28. c4 {[%clk 00:01:58]} {[%emt 00:01:00]} Nb4
{[%clk 00:05:44]} {[%emt 00:00:10]} 29. Bb1 {[%clk 00:02:04]} {[%emt 00:00:05]}
dxc4 {[%clk 00:05:46]} {[%emt 00:00:07]} 30. Rc3 {[%clk 00:02:13]} {[%emt
00:00:02]} e5 {[%clk 00:05:27]} {[%emt 00:00:29]} 31. Rxc4 {[%clk 00:01:41]}
{[%emt 00:00:41]} Rd8 {[%clk 00:04:43]} {[%emt 00:00:54]} 32. Nb3 {[%clk
00:01:06]} {[%emt 00:00:46]} Nd5 {[%clk 00:03:19]} {[%emt 00:01:34]} 33. Nxa5
{[%clk 00:00:50]} {[%emt 00:00:26]} exd4 {[%clk 00:03:13]} {[%emt 00:00:16]} 34.
exd4 {[%clk 00:00:49]} {[%emt 00:00:10]} Nb6 {[%clk 00:03:07]} {[%emt
00:00:15]} 35. Rb4 {[%clk 00:00:48]} {[%emt 00:00:12]} Nd5 {[%clk 00:03:08]}
{[%emt 00:00:09]} 36. Nc6 {[%clk 00:00:35]} {[%emt 00:00:23]} Nxb4 {[%clk
00:03:07]} {[%emt 00:00:12]} 37. Nxd8 {[%clk 00:00:44]} Bxd8 {[%clk 00:03:16]}
{[%emt 00:00:01]} 38. a3 {[%clk 00:00:50]} {[%emt 00:00:04]} Nd5 {[%clk
00:03:22]} {[%emt 00:00:03]} 39. Ba2 {[%clk 00:00:56]} {[%emt 00:00:04]} Nc3
{[%clk 00:03:28]} {[%emt 00:00:04]} 40. Bc4 {[%clk 00:01:01]} {[%emt 00:00:05]}
Bb6 {[%clk 00:03:28]} {[%emt 00:00:10]} 41. d5 {[%clk 00:01:09]} {[%emt
00:00:03]} Ke7 {[%clk 00:03:30]} {[%emt 00:00:08]} 42. Kf1 {[%clk 00:01:14]}
{[%emt 00:00:05]} Kd6 {[%clk 00:03:39]} {[%emt 00:00:02]} 43. Ke1 {[%clk
00:01:16]} {[%emt 00:00:06]} Nxd5 {[%clk 00:03:43]} {[%emt 00:00:06]} 44. Ke2
{[%clk 00:01:19]} {[%emt 00:00:08]} Kc5 {[%clk 00:03:42]} {[%emt 00:00:11]} 45.
Bb3 {[%clk 00:01:27]} {[%emt 00:00:03]} Kd4 {[%clk 00:03:43]} {[%emt 00:00:08]}
46. f3 {[%clk 00:01:28]} {[%emt 00:00:09]} h6 {[%clk 00:03:40]} {[%emt
00:00:12]} 47. g4 {[%clk 00:01:31]} {[%emt 00:00:07]} fxg4 {[%clk 00:03:45]}
{[%emt 00:00:06]} 48. fxg4 {[%clk 00:01:39]} {[%emt 00:00:01]} g5 {[%clk
00:03:46]} {[%emt 00:00:09]} 49. Kf3 {[%clk 00:01:47]} {[%emt 00:00:02]} Nc3
{[%clk 00:03:43]} {[%emt 00:00:14]} 50. Bc2 {[%clk 00:01:40]} {[%emt 00:00:15]}
Bc7 {[%clk 00:03:39]} {[%emt 00:00:16]} 51. Bb3 {[%clk 00:01:47]} {[%emt
00:00:03]} Bd6 {[%clk 00:03:36]} {[%emt 00:00:13]} 52. a4 {[%clk 00:01:56]} Bb4
{[%clk 00:03:41]} {[%emt 00:00:03]} 53. Bc2 {[%clk 00:02:03]} {[%emt 00:00:04]}
Nd5 {[%clk 00:03:44]} {[%emt 00:00:08]} 54. Be4 {[%clk 00:02:06]} {[%emt
00:00:05]} Nf4 {[%clk 00:03:42]} {[%emt 00:00:11]} 55. Bc6 {[%clk 00:02:05]}
{[%emt 00:00:13]} Nd3 {[%clk 00:03:46]} {[%emt 00:00:06]} 56. Be8 {[%clk
00:02:04]} {[%emt 00:00:11]} Ne5+ {[%clk 00:03:49]} {[%emt 00:00:07]} 57. Kg3
{[%clk 00:02:12]} {[%emt 00:00:03]} Be1+ {[%clk 00:03:52]} {[%emt 00:00:05]} 58.
Kh3 {[%clk 00:02:21]} {[%emt 00:00:03]} Kc5 {[%clk 00:03:44]} {[%emt 00:00:18]}
59. Bb5 {[%clk 00:02:24]} {[%emt 00:00:07]} Kb4 {[%clk 00:03:48]} {[%emt
00:00:05]} 60. Be8 {[%clk 00:02:33]} {[%emt 00:00:02]} Nc4 {[%clk 00:03:53]}
{[%emt 00:00:05]} 61. Kh2 {[%clk 00:02:04]} {[%emt 00:00:39]} Nb6 {[%clk
00:03:59]} {[%emt 00:00:04]} 62. Kg1 {[%clk 00:02:10]} {[%emt 00:00:04]} Nxa4
{[%clk 00:04:07]} {[%emt 00:00:02]} 63. Kf1 {[%clk 00:02:19]} {[%emt 00:00:01]}
Bg3 {[%clk 00:04:11]} {[%emt 00:00:04]} 64. Ke2 {[%clk 00:02:28]} {[%emt
00:00:03]} Nc5 {[%clk 00:04:13]} {[%emt 00:00:09]} 65. Ke3 {[%clk 00:02:30]}
{[%emt 00:00:07]} Kc3 {[%clk 00:04:15]} {[%emt 00:00:08]} 66. Bb5 {[%clk
00:02:28]} {[%emt 00:00:12]} Bf4 {[%clk 00:04:23]} {[%emt 00:00:02]} 67. Kf3
{[%clk 00:02:34]} {[%emt 00:00:04]} Kd4 {[%clk 00:04:28]} {[%emt 00:00:05]} 68.
Bc6 {[%clk 00:02:34]} {[%emt 00:00:11]} Nd3 {[%clk 00:04:31]} {[%emt 00:00:06]}
69. Bb7 {[%clk 00:02:27]} {[%emt 00:00:18]} Ne5+ {[%clk 00:04:38]} {[%emt
00:00:02]} 70. Kf2 {[%clk 00:02:35]} {[%emt 00:00:02]} Nxg4+ {[%clk 00:04:45]}
{[%emt 00:00:03]} 71. Kf3 {[%clk 00:02:44]} {[%emt 00:00:01]} Ne5+ {[%clk
00:04:54]} {[%emt 00:00:02]} 72. Ke2 {[%clk 00:02:50]} {[%emt 00:00:04]} Nc4
{[%clk 00:04:44]} {[%emt 00:00:19]} 73. Kf2 {[%clk 00:02:43]} {[%emt 00:00:17]}
Ne5 {[%clk 00:04:31]} {[%emt 00:00:23]} 74. Kg1 {[%clk 00:02:45]} {[%emt
00:00:08]} Ke3 {[%clk 00:04:37]} {[%emt 00:00:04]} 75. Ba8 {[%clk 00:02:51]}
{[%emt 00:00:05]} Bg3 {[%clk 00:04:41]} {[%emt 00:00:05]} 76. Bb7 {[%clk
00:02:56]} {[%emt 00:00:05]} Nd3 {[%clk 00:04:32]} {[%emt 00:00:18]} 77. Ba8
{[%clk 00:03:05]} {[%emt 00:00:03]} Nf4 {[%clk 00:04:41]} 78. Bb7 {[%clk
00:03:09]} {[%emt 00:00:06]} Ne2+ {[%clk 00:04:39]} {[%emt 00:00:11]} 79. Kh1
{[%clk 00:03:08]} {[%emt 00:00:11]} h5 {[%clk 00:04:29]} {[%emt 00:00:20]} 80.
Bc6 {[%clk 00:03:04]} {[%emt 00:00:15]} Kf2 {[%clk 00:04:32]} {[%emt 00:00:06]}
81. Bf3 {[%clk 00:02:48]} {[%emt 00:00:27]} h4 {[%clk 00:04:20]} {[%emt
00:00:22]} 82. Bc6 {[%clk 00:02:45]} {[%emt 00:00:13]} Nf4 {[%clk 00:04:23]}
{[%emt 00:00:07]} 83. Bb7 {[%clk 00:02:48]} {[%emt 00:00:07]} Ke1 {[%clk
00:04:21]} {[%emt 00:00:12]} 84. Bc6 {[%clk 00:02:49]} {[%emt 00:00:10]} Bf2
{[%clk 00:04:14]} {[%emt 00:00:15]} 85. Kh2 {[%clk 00:02:37]} {[%emt 00:00:23]}
g4 {[%clk 00:04:04]} {[%emt 00:00:19]} 86. Kh1 {[%clk 00:01:43]} {[%emt
00:01:06]} Bg3 {[%clk 00:04:09]} {[%emt 00:00:05]} 87. Bd7 {[%clk 00:01:31]}
{[%emt 00:00:22]} Kf2 {[%clk 00:04:01]} {[%emt 00:00:18]} 88. Bxg4 {[%clk
00:01:38]} {[%emt 00:00:03]} Nxg2 {[%clk 00:04:08]} {[%emt 00:00:02]} 89. Bd7
{[%clk 00:01:42]} {[%emt 00:00:07]} Ne3 {[%clk 00:04:15]} {[%emt 00:00:02]} 90.
Bc8 {[%clk 00:01:47]} {[%emt 00:00:06]} Be5 {[%clk 00:04:13]} {[%emt 00:00:11]}
91. Bd7 {[%clk 00:01:53]} {[%emt 00:00:05]} Kg3 {[%clk 00:04:12]} {[%emt
00:00:10]} 92. Bc8 {[%clk 00:01:51]} {[%emt 00:00:12]} Bd4 {[%clk 00:04:14]}
{[%emt 00:00:08]} 93. Bd7 {[%clk 00:01:53]} {[%emt 00:00:08]} Nd1 {[%clk
00:04:16]} {[%emt 00:00:07]} 94. Bc8 {[%clk 00:01:58]} {[%emt 00:00:06]} Nf2+
{[%clk 00:03:57]} {[%emt 00:00:30]} 95. Kg1 {[%clk 00:02:07]} Ng4+ {[%clk
00:04:06]} {[%emt 00:00:01]} 96. Kh1 {[%clk 00:02:06]} {[%emt 00:00:11]} Ne5
{[%clk 00:03:33]} {[%emt 00:00:42]} 97. Be6 {[%clk 00:02:10]} {[%emt 00:00:06]}
Nd3 {[%clk 00:03:24]} {[%emt 00:00:20]} 98. Bc8 {[%clk 00:02:15]} {[%emt
00:00:04]} Be5 {[%clk 00:03:24]} {[%emt 00:00:10]} 99. Bd7 {[%clk 00:01:38]}
{[%emt 00:00:48]} Kf2 {[%clk 00:03:19]} {[%emt 00:00:14]} 100. Bc8 {[%clk
00:01:42]} {[%emt 00:00:07]} Nc1 {[%clk 00:02:53]} {[%emt 00:00:35]} 101. Bd7
{[%clk 00:01:48]} {[%emt 00:00:04]} Ne2 {[%clk 00:03:02]} {[%emt 00:00:01]} 102.
Bc8 {[%clk 00:01:54]} {[%emt 00:00:05]} Ng3+ {[%clk 00:03:07]} {[%emt
00:00:05]} 103. Kh2 {[%clk 00:02:03]} {[%emt 00:00:01]} Ne4 {[%clk 00:03:01]}
{[%emt 00:00:15]} 104. Kh1 {[%clk 00:02:07]} {[%emt 00:00:07]} Bg3 {[%clk
00:03:05]} {[%emt 00:00:05]} 105. Bd7 {[%clk 00:02:07]} {[%emt 00:00:10]} Kf1
{[%clk 00:03:14]} {[%emt 00:00:01]} 106. Bb5+ {[%clk 00:02:13]} {[%emt
00:00:04]} Ke1 {[%clk 00:03:22]} {[%emt 00:00:02]} 107. Bd7 {[%clk 00:02:17]}
{[%emt 00:00:07]} Ng5 {[%clk 00:03:29]} {[%emt 00:00:02]} 108. Kg2 {[%clk
00:02:18]} {[%emt 00:00:10]} Ke2 {[%clk 00:03:31]} {[%emt 00:00:07]} 109. Bc8
{[%clk 00:02:20]} {[%emt 00:00:08]} Ke3 {[%clk 00:03:37]} {[%emt 00:00:05]} 110.
Bd7 {[%clk 00:02:26]} {[%emt 00:00:04]} Kf4 {[%clk 00:03:38]} {[%emt 00:00:09]}
111. Bc8 {[%clk 00:02:29]} {[%emt 00:00:07]} Be1 {[%clk 00:03:31]} {[%emt
00:00:16]} 112. Bd7 {[%clk 00:02:35]} {[%emt 00:00:05]} Ne4 {[%clk 00:03:32]}
{[%emt 00:00:09]} 113. Bc8 {[%clk 00:02:39]} {[%emt 00:00:06]} Ng5 {[%clk
00:03:17]} {[%emt 00:00:24]} 114. Bd7 {[%clk 00:02:46]} {[%emt 00:00:03]} Ne4
{[%clk 00:02:32]} {[%emt 00:00:55]} 115. Bc8 {[%clk 00:02:48]} {[%emt
00:00:08]} Nf6 {[%clk 00:02:40]} {[%emt 00:00:02]} 116. Be6 {[%clk 00:02:48]}
{[%emt 00:00:10]} Ke5 {[%clk 00:02:38]} {[%emt 00:00:12]} 117. Bc8 {[%clk
00:02:55]} {[%emt 00:00:04]} Kf4 {[%clk 00:02:45]} {[%emt 00:00:03]} 118. Be6
{[%clk 00:03:03]} {[%emt 00:00:02]} Ng4 {[%clk 00:02:51]} {[%emt 00:00:03]} 119.
Bxg4 {[%clk 00:03:10]} {[%emt 00:00:03]} Kxg4 {[%emt 00:00:02]} 120. Kh1 {[%clk
00:03:10]} 1/2-1/2

[Event "British Rapidplay Championship 2023"]
[Site "Mercure Bradford, Bankfield Hotel"]
[Date "2023.04.15"]
[Round "2.16"]
[White "Quilter, Thomas A"]
[Black "Lau, Luke"]
[Result "0-1"]
[TimeControl "15 minutes plus 10 seconds per move"]
[WhiteElo "2134"]
[BlackElo "1917"]

1. e4 {[%clk 00:15:17]} {[%emt 00:00:02]} e5 {[%clk 00:15:17]} {[%emt
00:00:04]} 2. Nf3 {[%clk 00:15:14]} {[%emt 00:00:12]} Nf6 {[%clk 00:15:25]}
{[%emt 00:00:03]} 3. Nc3 {[%clk 00:15:03]} {[%emt 00:00:21]} Nc6 {[%clk
00:15:33]} {[%emt 00:00:01]} 4. d4 {[%clk 00:14:16]} {[%emt 00:01:21]} exd4
{[%clk 00:15:39]} 5. Nxd4 {[%clk 00:14:24]} Bb4 {[%clk 00:15:47]} 6. Nxc6
{[%clk 00:13:36]} {[%emt 00:00:43]} bxc6 {[%clk 00:15:55]} {[%emt 00:00:02]} 7.
Bd3 {[%clk 00:13:40]} {[%emt 00:00:05]} d5 {[%clk 00:16:03]} {[%emt 00:00:02]}
8. e5 {[%clk 00:12:45]} {[%emt 00:01:05]} Ng4 {[%clk 00:08:41]} {[%emt
00:07:33]} 9. O-O {[%clk 00:12:08]} {[%emt 00:00:47]} Qh4 {[%clk 00:06:53]}
{[%emt 00:01:57]} 10. Bf4 {[%clk 00:10:37]} {[%emt 00:01:41]} O-O {[%clk
00:05:01]} {[%emt 00:02:02]} 11. Qe2 {[%clk 00:06:27]} {[%emt 00:04:20]} Nh6
{[%clk 00:03:31]} {[%emt 00:01:41]} 12. Bg3 {[%clk 00:04:59]} {[%emt 00:01:38]}
Qg4 {[%clk 00:03:32]} {[%emt 00:00:09]} 13. f3 {[%clk 00:04:57]} {[%emt
00:00:11]} Bc5+ {[%clk 00:03:13]} {[%emt 00:00:30]} 14. Kh1 {[%clk 00:05:03]}
{[%emt 00:00:04]} Qh5 {[%clk 00:03:14]} {[%emt 00:00:09]} 15. Na4 {[%clk
00:04:49]} {[%emt 00:00:24]} Be7 {[%clk 00:02:42]} {[%emt 00:00:42]} 16. Bf2
{[%clk 00:04:09]} {[%emt 00:00:49]} Re8 {[%clk 00:01:30]} {[%emt 00:01:23]} 17.
Rae1 {[%clk 00:04:07]} {[%emt 00:00:12]} Bh4 {[%clk 00:01:13]} {[%emt
00:00:27]} 18. Nc5 {[%clk 00:02:49]} {[%emt 00:01:27]} Bxf2 {[%clk 00:01:06]}
{[%emt 00:00:18]} 19. Qxf2 {[%clk 00:02:48]} {[%emt 00:00:11]} Rb8 {[%clk
00:01:04]} {[%emt 00:00:12]} 20. b3 {[%clk 00:02:41]} {[%emt 00:00:17]} Qg5
{[%clk 00:00:24]} {[%emt 00:00:50]} 21. f4 {[%clk 00:02:19]} {[%emt 00:00:32]}
Qh5 {[%clk 00:00:27]} {[%emt 00:00:07]} 22. f5 {[%clk 00:02:14]} {[%emt
00:00:15]} Rb4 {[%clk 00:00:23]} {[%emt 00:00:14]} 23. c4 {[%clk 00:01:53]}
{[%emt 00:00:31]} dxc4 {[%clk 00:00:22]} {[%emt 00:00:11]} 24. bxc4 {[%clk
00:01:57]} {[%emt 00:00:06]} Ng4 {[%clk 00:00:21]} {[%emt 00:00:12]} 25. Qg3
{[%clk 00:01:55]} {[%emt 00:00:11]} Rb2 {[%clk 00:00:19]} {[%emt 00:00:11]} 26.
h3 {[%clk 00:01:46]} {[%emt 00:00:19]} Nh6 {[%clk 00:00:22]} {[%emt 00:00:07]}
27. Bb1 {[%clk 00:01:20]} {[%emt 00:00:37]} Bxf5 {[%clk 00:00:21]} {[%emt
00:00:11]} 28. Ne4 {[%clk 00:01:00]} {[%emt 00:00:29]} Bg6 {[%clk 00:00:17]}
{[%emt 00:00:14]} 29. Qa3 {[%clk 00:00:32]} {[%emt 00:00:39]} Rxb1 {[%clk
00:00:19]} {[%emt 00:00:08]} 30. Ng3 {[%clk 00:00:27]} {[%emt 00:00:15]} Rxe1
{[%clk 00:00:25]} {[%emt 00:00:03]} 31. Nxh5 {[%clk 00:00:30]} {[%emt
00:00:08]} Rxf1+ {[%clk 00:00:34]} {[%emt 00:00:01]} 32. Kh2 {[%clk 00:00:39]}
Bxh5 {[%clk 00:00:41]} {[%emt 00:00:04]} 33. g4 {[%clk 00:00:48]} {[%emt
00:00:02]} Bg6 {[%clk 00:00:47]} {[%emt 00:00:03]} 34. Qxa7 {[%clk 00:00:52]}
{[%emt 00:00:05]} Re1 {[%clk 00:00:53]} {[%emt 00:00:03]} 35. a4 {[%clk
00:00:57]} {[%emt 00:00:07]} R1xe5 {[%clk 00:00:59]} {[%emt 00:00:04]} 36. a5
{[%clk 00:01:04]} {[%emt 00:00:03]} Re2+ {[%clk 00:01:07]} {[%emt 00:00:01]} 37.
Kg3 {[%clk 00:01:11]} {[%emt 00:00:03]} f5 {[%clk 00:01:10]} {[%emt 00:00:08]}
38. Qxc7 {[%clk 00:00:55]} {[%emt 00:00:26]} fxg4 {[%clk 00:01:13]} {[%emt
00:00:07]} 39. hxg4 {[%clk 00:01:00]} {[%emt 00:00:05]} Nf7 {[%clk 00:00:44]}
{[%emt 00:00:40]} 40. a6 {[%clk 00:01:02]} {[%emt 00:00:07]} R2e3+ {[%clk
00:00:41]} {[%emt 00:00:13]} 41. Kf2 {[%clk 00:01:09]} {[%emt 00:00:02]} Ra3
{[%clk 00:00:46]} {[%emt 00:00:06]} 42. Qxc6 {[%clk 00:01:13]} {[%emt
00:00:05]} Ra2+ {[%clk 00:00:54]} {[%emt 00:00:03]} 43. Kg3 {[%clk 00:01:09]}
{[%emt 00:00:13]} Ng5 {[%clk 00:00:52]} {[%emt 00:00:10]} 44. Qd5+ {[%clk
00:01:12]} {[%emt 00:00:10]} Ne6 {[%clk 00:00:57]} {[%emt 00:00:04]} 45. Qb7
{[%clk 00:01:04]} {[%emt 00:00:19]} Nd8 {[%clk 00:00:49]} {[%emt 00:00:17]} 46.
Qd5+ {[%clk 00:00:52]} {[%emt 00:00:22]} Bf7 {[%clk 00:00:57]} {[%emt
00:00:02]} 47. Qb5 {[%clk 00:00:51]} {[%emt 00:00:12]} Ne6 {[%clk 00:01:01]}
{[%emt 00:00:05]} 48. c5 {[%clk 00:00:48]} {[%emt 00:00:14]} Ra3+ {[%clk
00:00:53]} {[%emt 00:00:19]} 49. Kf2 {[%clk 00:00:51]} {[%emt 00:00:06]} Nd4
{[%clk 00:00:49]} {[%emt 00:00:14]} 50. Qb1 {[%emt 00:00:57]} Rf3+ {[%clk
00:00:45]} 51. Kg1 {[%clk 00:00:20]} {[%emt 00:00:07]} Rb3 {[%clk 00:00:43]}
{[%emt 00:00:12]} 52. Qd1 {[%clk 00:00:22]} {[%emt 00:00:07]} Re1+ {[%clk
00:00:44]} {[%emt 00:00:10]} 0-1